Workbook

Sheet Log retuns
B1: Compounding retuns | H1: Simple returns
B3: r is the rate of interest for t period | H3: Return = (Pt - Po)/Po
B4: n is the number of periods for which we need to compound
B5: Pt = Po(1+r/n)^nt
B8: Say, r is | C8: 0.1 | D8: for 1 year
B9: for annual compounding, n=1
C10: At the end of 1 year | D10: Pt = Po(1+10%)^1
B12: for semmiannual compunding, n=2
C13: At the end of 1 year | D13: Pt = Po(1+10%/2)^2
B15: for 1 day compounding, n=365
C16: At the end of 1 year | D16: Pt = Po(1+10%/365)^365
B18: for continuous compounding, n---> infinifty
B19: Pt = Po(1+r/n)^n for limit n--> infinity
C20: At the end of 1 year | D20: Pt = Po*e^r
D21: Pt/Po = e^r
B22: this implies
B23: r=ln(Pt/Po)

Sheet Bessels Correction
A1: Bessels Correction
A2: Say the mean of the whole population is | E2: 2050
B4: Sample data
B5: 2051
B6: 2053
B7: 2055
B8: 2050
B9: 2051
A10: Average | B10: =AVERAGE(B5:B9) -> 2052
A13: Population variance | C13: Xavg for population is 2050
B14: Sample data | C14: Xi-Xavg | D14: (Xi-Xavg)^2
B15: 2051 | C15: =B15-$E$2 -> 1 | D15: =C15^2 -> 1
B16: 2053 | C16: =B16-$E$2 -> 3 | D16: =C16^2 -> 9
B17: 2055 | C17: 5 | D17: 25
B18: 2050 | C18: 0 | D18: 0
B19: 2051 | C19: 1 | D19: 1
C20: Population Variance | D20: =SUM(D15:D19)/5 -> 7.2 | E20: =SUM(D15:D19)/5
A22: Sample variance | C22: X avg for sample is 2052
B23: Sample data | C23: Xi-Xavg | D23: (Xi-Xavg)^2
B24: 2051 | C24: =B24-$B$10 -> -1 | D24: =C24^2 -> 1 | K24: Sum of (Xi -Xavg)
B25: 2053 | C25: =B25-$B$10 -> 1 | D25: =C25^2 -> 1
B26: 2055 | C26: 3 | D26: 9 | K26: Xavg = (Sum of Xi)/n
B27: 2050 | C27: -2 | D27: 4 | F27: Sum of Xi-Xavg (for Sample)
B28: 2051 | C28: -1 | D28: 1 | F28: =SUM(C24:C28) -> 0 | K28: X avg * n = Sum of Xi
C29: Sample Variance | D29: =SUM(D24:D28)/5 -> 3.2 | E29: =SUM(D24:D28)/5
B30: After Bessels Correction | D30: =SUM(D24:D28)/4 -> 4 | E30: =SUM(D24:D28)/4
A33: From degrees of freedom
A35: x^2+2x+1 = 0
A36: This equation has 2 roots
A38: x^n+x^n-1+….+1 = 0
A39: This equation has n roots
A41: However, if I know that the sum of n roots is 0, then I need to know only n-1 roots.
E43: root1+root2+root3+….+rootn = 0

Sheet Random walk
F2: Day | G2: Price | H2: Delta | I2: k
F3: 0 | G3: 100 | I3: '=(G4-G3)/G3
F4: 1 | G4: 101 | H4: =G4-G3 -> 1 | I4: =(G4-G3)/G3 -> 0.01 | J4: k1
F5: 2 | G5: 98 | H5: =G5-G4 -> -3 | I5: =(G5-G4)/G4 -> -0.0297029703 | J5: k2
F6: 3 | G6: 99 | H6: =G6-G5 -> 1 | I6: 0.01020408163 | J6: k3
F7: 4 | G7: 99.5 | H7: 0.5 | I7: 0.005050505051 | J7: k4
F8: 5 | G8: 97 | H8: -2.5 | I8: -0.02512562814 | J8: k5
C9: P1 is today's price and Po is yesterday's price
D10: P1 = Po + delta | M10: Case 1
M11: If yesterday the stock was at 100
D12: delta = kPo
M13: Case 2
D14: P1 = Po(1+k) | M14: If yesterday the stock was at 1000
D16: k=(P1-Po)/Po | L16: Statement | M16: Today's stock return is 5%
D18: and we are saying that this k is normally distributed | M18: Today's price will depend upon the return and yesterday's price
D19: and k doesn't depends on any prev information
C21: MODEL | D21: essentially we are saying that the stock return is normally distributed!!!
C24: Model: | D24: that the return of a stock is normally distributed
C26: Corollory | D26: if I know the mean and the std dev of the returns, then I can estimate the prob of where the stock price will lie
B27: Example: | C27: from historical data
C28: 1 | D28: The mean of returns is zero and the std dev of returns of GOOGLE is 10% annually | L28: ; Through historical data
C29: 2 | D29: Stock price is at $100 | L29: ; Through current data
C30: 3 | D30: and I assume that returns are normally distributed | L30: ; assumption
C32: Property of normal distributions
C33: In normal distributions, 68% of the values lie between -1std dev and +1std dev around the mean
C35: from (1) and (3) =, I know
C36: that there is a 68% chance that the returns next year will be between -10% and +10% around the mean
C37: that there is a 95% chance that the returns next year will be between -20% and +20% around the mean
A39: Example 1 | C39: So if mean is 0% (from historical data) | M39: Mean is 100
C40: there is a 68% chance that the Price next year will be between 90 and 110 | M40: std dev is 10%
C41: there is a 95% chance that the Price next year will be between 80 and 120
M42: -1std dev | N42: =90 -> 90
C43: Say the price on 1st Jan, 2021 was $100, and on 1st July, 2021 GOOGLE is trading at $70
C44: So if in mid year, Google is trading at $70, I would want to buy it!!!
A47: Example 2 | C47: So if mean is 10% (from historical data) | F47: Then at the end of the year the Price should have been $110 | M47: Mean is 110
C48: there is a 68% chance that the Price next year will be between 99 and 121 (1 std dev around $110) | M48: std dev is 10%
C49: there is a 95% chance that the Price next year will be between 88 and 132 (2 std dev from $110)
M50: -1std dev | N50: 99
C52: Stock Price today | D52: 100
B53: Annual | C53: Mean of Returns | D53: 0.1
B54: Annual | C54: Std dev | D54: 0.2
C56: Next year
C57: Price = | D57: Mean of return*100 +/- Error
D59: Error is given to us by the std dev

Sheet Property of variance
E2: Given
D3: 1 day's returns std dev | E3: 0.01
C5: What is the annualized std dev
C7: I assume that the std of Day1 = Day2 = Day3……
C9: Day | D9: 1 | E9: 2 | F9: 3 | G9: 4 | H9: 5 | I9: 6 | K9: 252 days
C10: Std dev | D10: 0.01 | E10: 0.01 | F10: 0.01 | G10: 0.01
C11: Variance | D11: =D10^2 -> 0.0001 | E11: =E10^2 -> 0.0001 | F11: 0.0001 | G11: 0.0001
C13: Add variances
C14: Variance of 1 day | E14: =1%^2 -> 0.0001 | F14: =1%^2
C15: Variance of 252 days | E15: =252*E14 -> 0.0252 | F15: =252*0.0001 -> 0.0252
C17: std dev of 252 days | E17: =SQRT(E15) -> 0.1587450787 | F17: =sqrt(0.0252)
B20: Objective: | C20: If I know the std dev of returns of 1 time period, how much the stock returns can vary in T time periods?
D22: std dev 1 time period is 1
D23: var of 1 time period is 1^2
D25: var of T time periods | F25: 1^2+1^2….T times
C26: Total Variance in T time period | F26: T
C27: std dev of T time periods is | F27: sqrt(T)
B29: Therefore, | C29: if std dev of 1 time period is sigma
C31: Variance of T time periods = sigma^2+sigma^2….T times
E32: =T *sigma^2
D33: sd dev = sqrt (Variance) = sigma *sqrt(T)
C35: or, std dev of T (time period) = std dev of 1 time period * sqrt(T)

Sheet 10day std dev
A1: Example
A2: Stock price | B2: 100 | D2: OBJECTIVE: Estimate the price of the stock at the end of 10th day
A4: Avg Daily return | B4: 0.01
A5: Std dev of daily returns | B5: 0.01
A7: (10 days) avg. return** | B7: =10*(B4-B9^2/2) -> 0.0995 | C7: =10*(B4-B5^2/2) -> 0.0995 | F7: ** Because of drift
A9: Std dev of daily returns | B9: 0.01
A10: 1 day variance | B10: =B9^2 -> 0.0001
A11: 10 day variance | B11: =10*B10 -> 0.001
A12: 10 day std dev | B12: =SQRT(B11) -> 0.0316227766 | C12: 1%*sqrt(10)
A14: Assume
A15: returns are normally distributed
A16: on 10th day there is a 68% chance that the stock returns lies between 10% - 1*3.2% and 10% + 1*3.2% | I16: +6.8% and +13.2%
A17: on 10th day there is a 95% chance that the stock returns lies between 10% - 2*3.2% and 10% + 2*3.2% | I17: +3.6% and +16.4%
A19: 68.2% chance that in 10 days the stock price will be between 106.8 and 113.2
A20: 95% chance that in 10 days the stock price will be between 103.6 and 116.4
A22: if on Day 5, stock is trading at 120, I can short this stock (and my trade has a 95% chance of being correct)
A25: Example of Nifty
A26: Nifty's daily returns avg is | B26: 0.000456
A27: std dev of daily returns is | B27: 0.01089
A28: Nifty's price today is | B28: 18065
A29: What is the price after 10 days?
A31: 10 day's return | B31: =(B26-(B27^2)/2)*10 -> 0.0039670395 | C31: =(B26-(B27^2)/2)*10
A32: 10 day std dev | B32: =B27*SQRT(10) -> 0.03443720372 | C32: =B27*SQRT(10)
A34: There is a 95% chance that after 10 days Nifty's price is between:
A36: 10 day returns would be between
A37: =B31-2*B32 -> -0.06490736794 | B37: =B31-2*3.4% | D37: Mean returns - 2*std dev
A38: =B31+2*B32 -> 0.07284144694 | B38: =B31+2*3.4% | D38: Mean returns + 2*std dev
A40: 10 days Price would be between:
A41: =B28*EXP(A37) -> 16929.69189 | B41: Pt=Po*exp^r | D41: =B28*EXP(A37) | G41: ln(Pt/Po) for lower range
A42: =B28*EXP(A38) -> 19429.99122 | B42: Pt=Po*exp^r | D42: =B28*EXP(A38) | G42: ln(Pt/Po) for Higher range
A45: Observation | B45: The range of Nifty is between | E45: =A41 -> 16929.69189 | F45: and | G45: =A42 -> 19429.99122 | H45: for 10 days
A46: Action | B46: Short Nifty options of Strike | E46: =ROUND(A41/50,0)*50-50 -> 16900 | F46: Put and | G46: =ROUND(A42/50,0)*50 -> 19450 | H46: Call

Sheet Drift
A1: Year | B1: Price | C1: Returns
A2: 0 | B2: 100
A3: 1 | B3: 115 | C3: =(B3-B2)/B2 -> 0.15
A4: 2 | B4: 138 | C4: 0.2
A5: 3 | B5: 172.5 | C5: 0.25
A6: 4 | B6: 155.3 | C6: -0.09971014493
A7: 5 | B7: 147.5 | C7: -0.05022537025
A8: Avg. | C8: =AVERAGE(C3:C7) -> 0.09001289696
A10: Year | B10: Price | C10: With avg returns
A11: 0 | B11: 100
A12: 1 | B12: =B11*(1+C3) -> 115 | C12: =B11*(1+$C$8) -> 109.0012897
A13: 2 | B13: =B12*(1+C4) -> 138 | C13: =C12*(1+$C$8) -> 118.8128116
A14: 3 | B14: =B13*(1+C5) -> 172.5 | C14: =C13*(1+$C$8) -> 129.5074969
A15: 4 | B15: =B14*(1+C6) -> 155.3 | C15: =C14*(1+$C$8) -> 141.1648419
A16: 5 | B16: =B15*(1+C7) -> 147.5 | C16: =C15*(1+$C$8) -> 153.8714983
A18: Why?
A19: Because geometric mean is always less than arithmetic mean!
A20: Simple Avg | B20: =C8 -> 0.09001289696 | C20: =C8
A21: GM | B21: =(1.15*1.2*1.25*0.9*0.95)^(1/5)-1 -> 0.08081420226 | C21: =(1.15*1.2*1.25*0.9*0.95)^(1/5)-1
A23: Year | B23: Price
A24: 0 | B24: 100
A25: 1 | B25: =B24*(1+$B$21) -> 108.0814202
A26: 2 | B26: =B25*(1+$B$21) -> 116.815934
A27: 3 | B27: 126.2563205
A28: 4 | B28: 136.4596243
A29: 5 | B29: =B28*(1+$B$21) -> 147.4875
A31: Avg | B31: Std dev
A32: =C8 -> 0.09001289696 | B32: =_xlfn.STDEV.S(C3:C7) -> 0.1556864579
A34: Drift | B34: =A32-(B32^2)/2 -> 0.07789376037 | C34: =avg - (std dev ^2)/2 | E34: =A24-(B24^2)/2
H36: term to be subtracted: | I36: (std dev^2)/2

Sheet Stock returns
A1: Through Random walk model we assume that the stock returns are normally distributed.
A2: Therefore,
A3: This holds true for small intervals | I3: This also holds true for small intervals
C4: ΔS/S | D4: = | E4: Normal(μ,σ2) | G4: ..(1) | I4: ΔS/S | J4: = | K4: ln(ST/So)
A6: For longer intervals, (T time periods)
C7: ln(ST/So) | D7: = | E7: Normal[(μ-σ2/2)*T,σ2T) | H7: …(2)
A12: From (1)
C13: ΔS/S | D13: = | E13: mean + variance
A17: Note:
A18: If lnX is normally distributed, then X is log normally distributed
A19: S: Stock Price
A20: T: time period
A21: ΔS | B21: : Change in Stock price

Sheet Norminv
C1: Mean | D1: Std Dev
A2: Observation | B2: X (Normally Distributed) | C2: 0 | D2: 1
A3: 1 | B3: =NORMINV(RAND(),$C$2,$D$2) -> -0.9999072721 | H3: =NORMINV(RAND(),$C$2,$D$2)
A4: =A3+1 -> 2 | B4: =NORMINV(RAND(),$C$2,$D$2) -> 1.155004443 | D4: Min | E4: Max | F4: Buckets | H4: Mean | I4: =AVERAGE(B3:B10003) -> -0.002899191604
A5: =A4+1 -> 3 | B5: =NORMINV(RAND(),$C$2,$D$2) -> 0.2858022111 | D5: -5 | E5: 5 | F5: 100 | H5: Std dev | I5: =_xlfn.STDEV.S(B3:B10003) -> 0.9953789609 | K5: 2 std dev | L5: =I5*2 -> 1.990757922
A6: 4 | B6: 0.996472844 | D6: Buckets | E6: Frequency
A7: 5 | B7: -1.040081549
A8: 6 | B8: =NORMINV(RAND(),$C$2,$D$2) -> 0.758170951 | D8: =D5 -> -5 | E8: =FREQUENCY(B3:B10002,D8:D108) -> 0
A9: 7 | B9: -0.4883682763 | D9: =D8+($E$5-$D$5)/$F$5 -> -4.9 | E9: 0
A10: 8 | B10: 0.9976894224 | D10: =D9+($E$5-$D$5)/$F$5 -> -4.8 | E10: 0
A11: 9 | B11: 0.5685515824 | D11: -4.7 | E11: 0
A12: 10 | B12: 0.1905977129 | D12: -4.6 | E12: 0
A13: 11 | B13: -2.005009084 | D13: -4.5 | E13: 0
A14: 12 | B14: 1.456324908 | D14: -4.4 | E14: 0
A15: 13 | B15: -0.8952961289 | D15: -4.3 | E15: 0
A16: 14 | B16: -0.3975775935 | D16: -4.2 | E16: 0
A17: 15 | B17: 0.8315097404 | D17: -4.1 | E17: 1
A18: 16 | B18: -1.581740075 | D18: -4 | E18: 0
A19: 17 | B19: 1.759553496 | D19: -3.9 | E19: 0
A20: 18 | B20: 0.01251723543 | D20: -3.8 | E20: 0
A21: 19 | B21: -0.663176226 | D21: -3.7 | E21: 1
A22: 20 | B22: 0.05554287392 | D22: -3.6 | E22: 1
A23: 21 | B23: -0.2541273291 | D23: -3.5 | E23: 3
A24: 22 | B24: -0.5344711704 | D24: -3.4 | E24: 1
A25: 23 | B25: -0.3892579668 | D25: -3.3 | E25: 2
A26: 24 | B26: 0.008409559446 | D26: -3.2 | E26: 2
A27: 25 | B27: 0.671013526 | D27: -3.1 | E27: 0
A28: 26 | B28: 1.423839011 | D28: -3 | E28: 4
A29: 27 | B29: 0.6852618055 | D29: -2.9 | E29: 1
A30: 28 | B30: 0.07566562161 | D30: -2.8 | E30: 5
A31: 29 | B31: 0.9596445946 | D31: -2.7 | E31: 10
A32: 30 | B32: -0.9010129526 | D32: -2.6 | E32: 16
A33: 31 | B33: -0.5508290255 | D33: -2.5 | E33: 12
A34: 32 | B34: -0.4855923721 | D34: -2.4 | E34: 24
A35: 33 | B35: -0.1397030366 | D35: -2.3 | E35: 26
A36: 34 | B36: 0.1101095872 | D36: -2.2 | E36: 31
A37: 35 | B37: -1.152373097 | D37: -2.1 | E37: 35
A38: 36 | B38: -0.1587437135 | D38: -2 | E38: 44 | F38: =SUM(E8:E38) -> 219
A39: 37 | B39: 0.7839552842 | D39: -1.9 | E39: 59
A40: 38 | B40: -0.4793685598 | D40: -1.8 | E40: 68
A41: 39 | B41: 0.8714066323 | D41: -1.7 | E41: 89
A42: 40 | B42: -0.08344327554 | D42: -1.6 | E42: 92
A43: 41 | B43: -1.414326918 | D43: -1.5 | E43: 141
A44: 42 | B44: -1.477309003 | D44: -1.4 | E44: 142
A45: 43 | B45: -0.1609592691 | D45: -1.3 | E45: 159
A46: 44 | B46: 1.399313964 | D46: -1.2 | E46: 185
A47: 45 | B47: 1.727799754 | D47: -1.1 | E47: 210
A48: 46 | B48: -0.2708794187 | D48: -1 | E48: 216
A49: 47 | B49: -0.4443349567 | D49: -0.9 | E49: 245
A50: 48 | B50: -0.2944191911 | D50: -0.8 | E50: 279
A51: 49 | B51: 1.166531982 | D51: -0.7 | E51: 318
A52: 50 | B52: -2.015902307 | D52: -0.6 | E52: 340
A53: 51 | B53: 0.8618735724 | D53: -0.5 | E53: 316
A54: 52 | B54: 0.8996295458 | D54: -0.4 | E54: 359
A55: 53 | B55: 0.4042932567 | D55: -0.3 | E55: 397
A56: 54 | B56: 1.264995918 | D56: -0.2 | E56: 369
A57: 55 | B57: -0.1848470472 | D57: -0.1 | E57: 403
A58: 56 | B58: -0.6072078456 | D58: -1.026956298e-15 | E58: 407 | F58: =SUM(E8:E58) -> 5013
A59: 57 | B59: -0.9774747666 | D59: =D58+($E$5-$D$5)/$F$5 -> 0.1 | E59: 395
A60: 58 | B60: -0.6466111965 | D60: 0.2 | E60: 381
A61: 59 | B61: 1.220025949 | D61: 0.3 | E61: 412
A62: 60 | B62: 0.5027836453 | D62: 0.4 | E62: 387
A63: 61 | B63: -0.1635191688 | D63: 0.5 | E63: 349
A64: 62 | B64: 1.032443087 | D64: 0.6 | E64: 340
A65: 63 | B65: -0.485662135 | D65: 0.7 | E65: 341
A66: 64 | B66: -0.5675164806 | D66: 0.8 | E66: 288
A67: 65 | B67: -0.9544450256 | D67: 0.9 | E67: 275
A68: 66 | B68: =NORMINV(RAND(),$C$2,$D$2) -> 0.5705356839 | D68: 1 | E68: 234
A69: =A68+1 -> 67 | B69: -1.900992217 | D69: 1.1 | E69: 215
A70: 68 | B70: 0.9107380268 | D70: 1.2 | E70: 228
A71: 69 | B71: 0.5326518615 | D71: 1.3 | E71: 194
A72: 70 | B72: 1.325576246 | D72: 1.4 | E72: 172
A73: 71 | B73: -0.9219287937 | D73: 1.5 | E73: 133
A74: 72 | B74: 0.8459569834 | D74: 1.6 | E74: 116
A75: 73 | B75: -0.3327879159 | D75: 1.7 | E75: 92
A76: 74 | B76: 0.892361831 | D76: 1.8 | E76: 84
A77: 75 | B77: -0.5253378951 | D77: 1.9 | E77: 72
A78: 76 | B78: 0.3345895615 | D78: 2 | E78: 61 | F78: =SUM(E78:E108) -> 279
A79: 77 | B79: -0.7933605415 | D79: 2.1 | E79: 39
A80: 78 | B80: 0.05147002004 | D80: 2.2 | E80: 42
A81: 79 | B81: -0.900297 | D81: 2.3 | E81: 33
A82: 80 | B82: 0.4558817503 | D82: 2.4 | E82: 26
A83: 81 | B83: 0.6790250269 | D83: 2.5 | E83: 15
A84: 82 | B84: 0.3972127588 | D84: 2.6 | E84: 14
A85: 83 | B85: 0.3252267754 | D85: 2.7 | E85: 15
A86: 84 | B86: -0.3326906577 | D86: 2.8 | E86: 10
A87: 85 | B87: 1.052079465 | D87: 2.9 | E87: 7
A88: 86 | B88: 0.3647540007 | D88: 3 | E88: 6
A89: 87 | B89: -0.733700381 | D89: 3.1 | E89: 4
A90: 88 | B90: -0.9186497114 | D90: 3.2 | E90: 1
A91: 89 | B91: -0.5039122552 | D91: 3.3 | E91: 3
A92: 90 | B92: 0.570169071 | D92: 3.4 | E92: 0
A93: 91 | B93: 0.5920369582 | D93: 3.5 | E93: 1
A94: 92 | B94: -0.3543678932 | D94: 3.6 | E94: 2
A95: 93 | B95: -0.4477774783 | D95: 3.7 | E95: 0
A96: 94 | B96: -1.100068178 | D96: 3.8 | E96: 0
A97: 95 | B97: -0.2507765835 | D97: 3.9 | E97: 0
A98: 96 | B98: 1.384726412 | D98: 4 | E98: 0
A99: 97 | B99: -0.6280353036 | D99: 4.1 | E99: 0
A100: 98 | B100: -1.142364137 | D100: 4.2 | E100: 0
A101: 99 | B101: -1.541903151 | D101: 4.3 | E101: 0
A102: 100 | B102: 1.393485883 | D102: 4.4 | E102: 0
A103: 101 | B103: 0.4066210348 | D103: 4.5 | E103: 0
A104: 102 | B104: -1.322790291 | D104: 4.6 | E104: 0
A105: 103 | B105: 1.810762295 | D105: 4.7 | E105: 0
A106: 104 | B106: -1.991299987 | D106: 4.8 | E106: 0
A107: 105 | B107: -0.09563407299 | D107: 4.9 | E107: 0
A108: 106 | B108: 1.090196194 | D108: 5 | E108: 0
A109: 107 | B109: -0.5676155428
A110: 108 | B110: -1.782343906
A111: 109 | B111: -0.3182579229
A112: 110 | B112: -0.6895477201
A113: 111 | B113: -2.65921663
A114: 112 | B114: -1.371871219
A115: 113 | B115: 0.7012959334
A116: 114 | B116: 0.4133897252
A117: 115 | B117: -0.08954144638
A118: 116 | B118: 0.6564932637
A119: 117 | B119: 1.019502839
A120: 118 | B120: 0.2332856464
A121: 119 | B121: 0.5269898688
A122: 120 | B122: -0.03395238595
A123: 121 | B123: 0.253862771
A124: 122 | B124: 0.6220877192
A125: 123 | B125: -1.2230569
A126: 124 | B126: -0.3324595166
A127: 125 | B127: -0.0853121684
A128: 126 | B128: 0.1787669407
A129: 127 | B129: -0.4542873441
A130: 128 | B130: -0.2973093423
A131: 129 | B131: -0.9705586786
A132: 130 | B132: =NORMINV(RAND(),$C$2,$D$2) -> 0.2377380377
A133: =A132+1 -> 131 | B133: 0.2775734839
A134: 132 | B134: 1.148279652
A135: 133 | B135: 2.071363321
A136: 134 | B136: -1.090068145
A137: 135 | B137: 0.2058749357
A138: 136 | B138: 0.2757368359
A139: 137 | B139: -0.3401532192
A140: 138 | B140: 0.3334240761
A141: 139 | B141: -1.441653562
A142: 140 | B142: -0.6152324857
A143: 141 | B143: -1.42638087
A144: 142 | B144: -1.856781639
A145: 143 | B145: -0.007577294159
A146: 144 | B146: -0.3820534118
A147: 145 | B147: -1.301994564
A148: 146 | B148: 0.5585981263
A149: 147 | B149: -1.236135733
A150: 148 | B150: -0.7164109329
A151: 149 | B151: -1.707490628
A152: 150 | B152: -0.01904115152
A153: 151 | B153: -0.4945787361
A154: 152 | B154: -1.413448239
A155: 153 | B155: 2.661891833
A156: 154 | B156: -0.9434955937
A157: 155 | B157: 1.169746672
A158: 156 | B158: 1.335280679
A159: 157 | B159: 0.1988698465
A160: 158 | B160: -0.3274559407
A161: 159 | B161: 0.2370913271
A162: 160 | B162: 0.8816407466
A163: 161 | B163: 0.810586657
A164: 162 | B164: 0.5436028653
A165: 163 | B165: -0.586319774
A166: 164 | B166: 1.086880048
A167: 165 | B167: 1.534982494
A168: 166 | B168: -0.4260744761
A169: 167 | B169: 0.9932354573
A170: 168 | B170: 0.4924573985
A171: 169 | B171: 0.5611727505
A172: 170 | B172: -0.4754477005
A173: 171 | B173: 1.208873673
A174: 172 | B174: -0.1667181789
A175: 173 | B175: -1.373107787
A176: 174 | B176: -0.2296108957
A177: 175 | B177: 0.3817140414
A178: 176 | B178: -0.67756931
A179: 177 | B179: 0.3195594369
A180: 178 | B180: 0.2657479309
A181: 179 | B181: 0.1805022962
A182: 180 | B182: -0.08469133952
A183: 181 | B183: -0.1202422185
A184: 182 | B184: -0.8437189175
A185: 183 | B185: -0.1653111531
A186: 184 | B186: -1.126900646
A187: 185 | B187: 1.020286412
A188: 186 | B188: 1.317729545
A189: 187 | B189: -1.675553725
A190: 188 | B190: -1.569498489
A191: 189 | B191: 0.3518190364
A192: 190 | B192: 3.558484114
A193: 191 | B193: -1.004991688
A194: 192 | B194: -0.7779723092
A195: 193 | B195: -0.2915925789
A196: 194 | B196: =NORMINV(RAND(),$C$2,$D$2) -> 0.3505358825
A197: =A196+1 -> 195 | B197: -0.6114533768
A198: 196 | B198: -1.156993322
A199: 197 | B199: -0.05660777875
A200: 198 | B200: 1.15384512
... 9802 more rows

Sheet Percentile
A1: Numbers | C1: 0.025 | D1: 0.975 | F1: 0.05
A2: 1 | C2: =PERCENTILE($A$2:$A$101,C1) -> 3.475 | D2: =PERCENTILE($A$2:$A$101,D1) -> 97.525 | F2: =PERCENTILE($A$2:$A$101,F1) -> 5.95
A3: =A2+1 -> 2
A4: =A3+1 -> 3
A5: 4
A6: 5
A7: 6
A8: 7
A9: 8
A10: 9
A11: 10
A12: 11
A13: 12
A14: 13
A15: 14
A16: 15
A17: 16
A18: 17
A19: 18
A20: 19
A21: 20
A22: 21
A23: 22
A24: 23
A25: 24
A26: 25
A27: 26
A28: 27
A29: 28
A30: 29
A31: 30
A32: 31
A33: 32
A34: 33
A35: 34
A36: 35
A37: 36
A38: 37
A39: 38
A40: 39
A41: 40
A42: 41
A43: 42
A44: 43
A45: 44
A46: 45
A47: 46
A48: 47
A49: 48
A50: 49
A51: 50
A52: 51
A53: 52
A54: 53
A55: 54
A56: 55
A57: 56
A58: 57
A59: 58
A60: 59
A61: 60
A62: 61
A63: 62
A64: 63
A65: 64
A66: 65
A67: 66
A68: =A67+1 -> 67
A69: 68
A70: 69
A71: 70
A72: 71
A73: 72
A74: 73
A75: 74
A76: 75
A77: 76
A78: 77
A79: 78
A80: 79
A81: 80
A82: 81
A83: 82
A84: 83
A85: 84
A86: 85
A87: 86
A88: 87
A89: 88
A90: 89
A91: 90
A92: 91
A93: 92
A94: 93
A95: 94
A96: 95
A97: 96
A98: 97
A99: 98
A100: 99
A101: 100
